bitfinex/quotes_SOLUSD_20230120
["timestamp","ask_amount","ask_price","bid_price","bid_amount"]
[1674193227851,10.0,21.006,20.99,35.73]
[1674193228073,10.0,21.004,20.989,144.9594]
[1674193228285,0.96,21.003,20.989,144.9594]
[1674193228476,0.96,21.002,20.989,144.9594]
[1674193228692,0.96,21.001,20.99,10.0]
[1674193228902,0.96,21.0,20.991,35.73]
[1674193229113,0.96,20.999,20.991,35.73]
[1674193229657,0.96,20.998,20.992,10.0]
[1674193229874,0.96,20.999,20.992,10.0]
[1674193230101,0.96,20.999,20.993,35.73]
[1674193230799,0.96,20.999,20.992,10.0]
[1674193231641,17.0,21.003,20.992,10.0]
[1674193231855,1.92,21.002,20.992,10.0]
[1674193232067,1.92,21.002,20.99,45.73]
[1674193233425,1.92,21.002,20.99,10.0]
[1674193234161,20.0,21.008,20.99,10.0]
[1674193234162,20.0,21.008,20.991,35.73]
[1674193234600,24.5752,21.009,20.991,35.73]
[1674193234905,24.5752,21.009,20.992,10.0]
[1674193235117,24.5752,21.009,20.993,35.73]
[1674193235326,10.0,21.008,20.993,35.73]
[1674193235537,37.96,21.007,20.993,35.73]
[1674193235756,0.96,21.006,20.994,10.0]
[1674193235972,0.96,21.005,20.994,10.0]
[1674193236498,0.96,21.005,20.995,55.73]
[1674193236681,0.96,21.005,20.996,10.0]
[1674193237102,0.96,21.005,20.997,20.0]
[1674193237331,35.7,21.012,20.997,20.0]
[1674193237527,10.0,21.013,20.998,10.0]
[1674193237742,35.69,21.014,20.999,119.345]
[1674193238062,35.69,21.014,21.0,10.0]
[1674193238493,35.69,21.014,20.999,119.345]
[1674193238681,10.0,21.012,20.997,55.72]
[1674193238890,50.2752,21.012,20.997,20.0]
[1674193239115,17.96,21.011,20.996,20.0]
[1674193239325,18.92,21.011,20.996,20.0]
[1674193239748,18.92,21.011,20.996,10.0]
[1674193239942,18.92,21.011,20.998,10.0]
[1674193240155,42.67576951,21.011,20.998,10.0]
[1674193241199,24.71576951,21.011,20.998,10.0]
[1674193241410,4.5752,21.012,20.999,147.1305]
[1674193241623,59.44576951,21.017,21.0,10.0]
[1674193241830,23.75576951,21.017,21.001,35.72]
[1674193242038,45.69,21.018,21.001,35.72]
[1674193242265,20.0,21.017,21.001,35.72]
[1674193242670,43.75576951,21.017,21.002,10.0]
[1674193242876,18.92,21.016,21.002,10.0]
[1674193243956,1.92,21.016,21.002,10.0]
[1674193245091,1.92,21.016,21.001,35.72]
[1674193245303,42.67576951,21.016,21.001,35.72]
[1674193245639,10.0,21.015,21.001,35.72]
[1674193245870,18.92,21.014,21.001,35.72]
[1674193246042,18.92,21.014,21.002,10.0]
[1674193246678,1.92,21.014,21.001,35.72]
[1674193246896,11.92,21.014,21.001,35.72]
[1674193247091,17.0,21.013,21.0,45.72]
[1674193247414,1.92,21.012,21.0,45.72]
[1674193247933,20.0,21.017,21.0,45.72]
[1674193248145,20.0,21.017,21.0,66.13]
[1674193248342,20.0,21.02,21.0,66.13]
[1674193248554,20.0,21.023,21.0,66.13]
[1674193248763,35.68,21.022,21.0,66.13]
[1674193248969,20.0,21.021,21.0,66.13]
[1674193249625,20.0,21.023,21.0,66.13]
[1674193249819,35.68,21.022,21.0,66.13]
[1674193250145,20.0,21.021,21.0,66.13]
[1674193250350,18.92,21.02,21.0,66.13]
[1674193250773,20.0,21.019,21.0,66.13]
[1674193250974,18.92,21.018,21.0,66.13]
[1674193251183,20.0,21.017,21.0,66.13]
[1674193251402,18.92,21.016,21.0,66.13]
[1674193252567,18.92,21.016,21.0,45.72]
[1674193253830,18.92,21.016,21.0,35.72]
[1674193254044,10.0,21.015,21.0,35.72]
[1674193254255,18.92,21.014,21.0,35.72]
[1674193254976,18.92,21.014,21.001,10.0]
[1674193255186,1.92,21.014,21.001,10.0]
[1674193256148,20.0,21.017,21.001,10.0]
[1674193256336,20.0,21.017,21.003,10.0]
[1674193256546,10.0,21.019,21.003,10.0]
[1674193256877,20.0,21.018,21.002,35.71]
[1674193257085,55.69,21.018,21.002,35.71]
[1674193257298,20.0,21.018,21.002,35.71]
[1674193257512,0.96,21.017,21.003,10.0]
[1674193257712,0.96,21.016,21.003,10.0]
[1674193259921,20.0,21.018,21.003,10.0]
[1674193260133,35.68,21.022,21.004,35.71]
[1674193260342,35.67,21.026,21.005,10.0]
[1674193260542,23.75576951,21.028,21.006,55.71]
[1674193260749,55.67,21.027,21.006,55.71]
[1674193260982,55.67,21.027,21.007,10.0]
[1674193261293,55.67,21.027,21.009,10.0]
[1674193261506,10.0,21.026,21.01,35.7]
[1674193261819,10.0,21.026,21.011,10.0]
[1674193262222,55.67,21.027,21.011,10.0]
[1674193262759,55.67,21.027,21.012,35.7]
[1674193262978,10.0,21.026,21.011,45.7]
[1674193263690,17.96,21.025,21.011,45.7]
[1674193263895,0.96,21.024,21.011,45.7]
[1674193264129,0.96,21.023,21.011,45.7]
[1674193264322,0.96,21.022,21.011,45.7]
[1674193264533,0.96,21.021,21.011,45.7]
[1674193265301,0.96,21.02,21.011,45.7]
[1674193265518,0.96,21.019,21.011,45.7]
[1674193265832,0.96,21.018,21.011,45.7]
[1674193266355,0.96,21.017,21.011,10.0]
[1674193266781,0.96,21.017,21.013,10.0]
[1674193267927,0.96,21.018,21.013,10.0]
[1674193268243,20.0,21.027,21.013,10.0]
[1674193268458,20.0,21.029,21.014,35.69]
[1674193268680,20.0,21.031,21.015,10.0]
[1674193269495,35.67,21.03,21.015,10.0]
[1674193269830,20.0,21.029,21.015,10.0]
[1674193270238,35.66,21.036,21.015,10.0]
[1674193270443,59.41576951,21.036,21.016,55.69]
[1674193270656,59.41576951,21.036,21.017,10.0]
[1674193271064,59.41576951,21.036,21.017,124.5238]
[1674193271277,10.0,21.035,21.019,10.0]
[1674193271488,23.75576951,21.036,21.02,35.68]
[1674193271920,23.75576951,21.036,21.018,35.69]
[1674193271921,45.66,21.035,21.018,35.69]
[1674193272339,10.0,21.033,21.018,35.69]
[1674193272553,10.0,21.031,21.018,35.69]
[1674193272772,18.92,21.03,21.018,35.69]
[1674193273088,17.0,21.029,21.018,35.69]
[1674193273485,1.92,21.03,21.018,35.69]
[1674193273486,1.92,21.028,21.018,35.69]
[1674193273695,0.96,21.027,21.018,35.69]
[1674193274032,0.96,21.026,21.017,114.5238]
[1674193274239,0.96,21.025,21.017,114.5238]
[1674193274551,0.96,21.024,21.018,10.0]
[1674193274766,0.96,21.023,21.018,10.0]
[1674193275792,0.96,21.023,21.018,45.69]
[1674193276024,17.0,21.032,21.019,10.0]
[1674193276234,0.96,21.031,21.019,10.0]
[1674193277410,35.66,21.035,21.019,10.0]
[1674193277615,35.65,21.042,21.02,35.68]
[1674193277817,30.0,21.041,21.021,10.0]
[1674193278016,20.58,21.05,21.022,35.68]
[1674193278017,35.65,21.04,21.022,35.68]
[1674193278227,20.58,21.05,21.022,35.68]
[1674193278228,35.64,21.045,21.024,10.0]
[1674193278448,35.64,21.045,21.025,35.68]
[1674193278665,35.64,21.045,21.026,20.0]
[1674193278879,35.63,21.049,21.027,35.67]
[1674193279091,20.0,21.048,21.027,35.67]
[1674193279305,20.0,21.048,21.028,10.0]
[1674193279487,20.0,21.048,21.029,35.67]
[1674193279698,20.0,21.048,21.03,10.0]
[1674193279929,20.0,21.048,21.031,35.66]
[1674193280131,35.64,21.047,21.028,10.0]
[1674193280354,14.5752,21.046,21.026,128.9247]
[1674193280538,40.2152,21.045,21.026,128.9247]
[1674193280743,4.5752,21.044,21.026,128.9247]
[1674193280959,35.64,21.043,21.026,128.9247]
[1674193281168,10.0,21.041,21.026,128.9247]
[1674193281378,54.57,21.04,21.026,20.0]
[1674193281610,10.0,21.039,21.023,20.0]
[1674193281818,54.57,21.038,21.022,20.0]
[1674193282004,54.57,21.038,21.022,55.68]
[1674193282428,54.57,21.038,21.022,20.0]
[1674193284245,54.57,21.038,21.023,10.0]
[1674193284459,18.92,21.038,21.024,55.68]
[1674193284977,18.92,21.038,21.024,20.0]
[1674193285173,1.92,21.038,21.024,20.0]
[1674193285385,1.92,21.038,21.025,10.0]
[1674193285593,1.92,21.038,21.026,20.0]
[1674193285804,1.92,21.038,21.024,20.0]
[1674193286235,1.92,21.038,21.025,10.0]
[1674193286422,1.92,21.038,21.026,20.0]
[1674193286631,10.0,21.037,21.022,35.68]
[1674193286849,37.58,21.036,21.021,111.4777]
[1674193287071,17.0,21.035,21.022,10.0]
[1674193287294,1.92,21.034,21.022,10.0]
[1674193288439,25.1052,21.04,21.023,35.68]
[1674193288440,4.5752,21.04,21.023,35.68]
[1674193288647,20.0,21.042,21.023,35.68]
[1674193288857,20.0,21.042,21.024,10.0]
[1674193289083,20.0,21.042,21.025,35.68]
[1674193289507,20.0,21.043,21.026,10.0]
[1674193289692,36.61,21.042,21.027,35.67]
[1674193289909,37.96,21.041,21.026,10.0]
[1674193290125,10.96,21.04,21.026,10.0]
[1674193290334,20.0,21.039,21.026,10.0]
[1674193290545,18.92,21.038,21.025,35.68]
[1674193290758,20.0,21.037,21.025,35.68]
[1674193290959,18.92,21.036,21.021,111.4777]
[1674193291171,45.66,21.035,21.021,111.4777]
[1674193291380,23.4952,21.034,21.021,111.4777]
[1674193291596,35.66,21.033,21.021,111.4777]
[1674193291834,18.92,21.032,21.021,111.4777]
[1674193292224,35.66,21.031,21.016,35.69]
[1674193292438,18.92,21.03,21.017,20.0]
[1674193292650,10.0,21.029,21.017,20.0]
[1674193292859,18.92,21.028,21.017,20.0]
[1674193293085,18.92,21.028,21.016,20.0]
[1674193294131,0.96,21.028,21.017,10.0]
[1674193294346,35.65,21.038,21.017,45.69]
[1674193294558,20.0,21.037,21.017,57.57423698]
[1674193295184,10.0,21.037,21.017,57.57423698]
[1674193295403,40.2352,21.036,21.017,35.69]
[1674193295819,10.0,21.035,21.016,20.0]
[1674193296129,40.2352,21.034,21.016,20.0]
[1674193296338,10.0,21.032,21.016,20.0]
[1674193296533,18.92,21.031,21.016,20.0]
[1674193297386,18.92,21.031,21.014,35.69]
[1674193297387,4.5752,21.03,21.014,35.69]
[1674193297588,64.59,21.029,21.011,111.1521]
[1674193297805,10.0,21.027,21.011,156.8521]
[1674193298117,18.92,21.026,21.012,10.0]
[1674193298323,18.92,21.026,21.011,156.8521]
[1674193298548,18.92,21.026,21.011,146.8521]
[1674193298757,4.5752,21.025,21.001,35.72]
[1674193298955,10.0,21.023,21.002,20.0]
[1674193299169,41.2152,21.022,21.003,35.71]
[1674193299380,17.96,21.021,21.004,20.0]
[1674193299606,0.96,21.02,21.004,20.0]
[1674193299806,0.96,21.019,21.005,35.71]
[1674193300022,10.96,21.018,21.006,20.0]
[1674193300230,20.96,21.017,21.005,35.71]
[1674193300448,20.96,21.017,21.001,115.7119]
[1674193300449,17.96,21.016,21.002,35.71]
[1674193300660,0.96,21.015,21.002,35.71]
[1674193300871,0.96,21.014,21.001,115.7119]
[1674193301061,0.96,21.013,21.002,35.71]
[1674193301271,0.96,21.012,21.002,35.71]
[1674193301481,0.96,21.012,21.001,115.7119]
[1674193301482,0.96,21.011,21.001,151.4319]
[1674193301714,0.96,21.01,21.001,151.4319]
[1674193301918,0.96,21.009,21.001,151.4319]
[1674193302139,0.96,21.008,21.001,151.4319]
[1674193302325,0.96,21.007,21.001,151.4319]
[1674193302870,0.96,21.006,21.001,151.4319]
[1674193303085,0.96,21.007,21.001,151.4319]
[1674193303271,0.96,21.007,21.001,35.72]
[1674193303479,0.96,21.007,21.0,45.72]
[1674193304945,20.0,21.017,21.0,45.72]
[1674193305392,20.0,21.022,21.0,45.72]
[1674193305799,20.0,21.022,21.0,66.13]
[1674193306129,35.68,21.023,21.001,11.88423698]
[1674193306336,35.67,21.026,21.002,35.71]
[1674193306524,45.67,21.027,21.003,30.0]
[1674193306737,4.5752,21.026,21.004,35.71]
[1674193306960,4.5752,21.026,21.006,10.0]
[1674193307153,4.5752,21.026,21.007,55.71]
[1674193307362,4.5752,21.026,21.008,10.0]
[1674193307583,4.5752,21.026,21.009,35.7]
[1674193307793,4.5752,21.026,21.01,10.0]
[1674193308213,4.5752,21.026,21.01,128.2116]
[1674193308642,0.96,21.025,21.012,10.0]
[1674193308976,35.67,21.029,21.012,10.0]
[1674193309187,131.99706951,21.031,21.013,35.7]
[1674193309408,78.87079654,21.031,21.013,35.7]
[1674193309587,10.0,21.03,21.014,10.0]
[1674193309799,20.0,21.029,21.014,10.0]
[1674193310130,20.0,21.029,21.013,35.7]
[1674193310131,18.92,21.028,21.013,35.7]
[1674193310347,20.0,21.027,21.013,35.7]
[1674193310546,18.92,21.026,21.012,35.7]
[1674193311082,17.0,21.025,21.012,35.7]
[1674193311270,1.92,21.024,21.012,35.7]
[1674193312331,1.92,21.024,21.01,118.2116]
[1674193312658,18.92,21.024,21.01,118.2116]
[1674193312870,1.92,21.024,21.012,10.0]
[1674193313063,0.96,21.024,21.013,35.7]
[1674193313397,0.96,21.026,21.014,10.0]
[1674193313715,0.96,21.028,21.015,35.69]
[1674193313907,0.96,21.028,21.016,10.0]
[1674193314115,20.0,21.029,21.015,35.69]
[1674193314322,20.0,21.03,21.015,35.69]
[1674193314524,20.0,21.03,21.016,10.0]
[1674193314739,43.75576951,21.03,21.015,35.69]
[1674193314970,10.0,21.029,21.013,35.7]
[1674193315281,10.0,21.027,21.013,35.7]
[1674193315499,18.92,21.026,21.013,35.7]
[1674193315692,1.92,21.026,21.014,10.0]
[1674193315917,1.92,21.026,21.015,35.69]
[1674193316225,1.92,21.026,21.014,10.0]
[1674193316835,0.96,21.026,21.014,10.0]
[1674193317047,0.96,21.026,21.016,10.0]
[1674193317257,0.96,21.026,21.017,55.69]
[1674193317467,35.66,21.036,21.018,10.0]
[1674193317678,10.0,21.037,21.018,10.0]
[1674193317917,35.66,21.036,21.019,35.69]
[1674193318227,35.66,21.036,21.02,10.0]
[1674193318469,69.40576951,21.037,21.02,10.0]
[1674193318959,69.40576951,21.037,21.022,10.0]
[1674193319147,0.96,21.036,21.022,10.0]
[1674193319359,0.96,21.035,21.022,10.0]
[1674193319585,0.96,21.034,21.022,10.0]
[1674193319795,0.96,21.033,21.022,10.0]
[1674193320011,0.96,21.032,21.022,10.0]
[1674193320621,0.96,21.031,21.022,10.0]
[1674193320833,0.96,21.03,21.022,10.0]
[1674193321045,0.96,21.029,21.022,10.0]
[1674193321267,0.96,21.028,21.022,10.0]
[1674193322092,0.96,21.028,21.024,10.0]
[1674193322942,10.0,21.037,21.024,10.0]
[1674193324299,17.96,21.036,21.023,35.68]
[1674193324512,10.0,21.035,21.023,35.68]
[1674193324833,17.96,21.034,21.021,116.4795]
[1674193325043,0.96,21.033,21.022,35.68]
[1674193325260,0.96,21.033,21.021,116.4795]
[1674193325689,0.96,21.033,21.022,10.0]
[1674193326212,0.96,21.033,21.022,45.68]
[1674193328916,23.75576951,21.037,21.022,45.68]
[1674193329132,35.65,21.039,21.022,45.68]
[1674193329349,23.75576951,21.046,21.023,20.0]
[1674193329576,40.2152,21.045,21.024,35.68]
[1674193329779,4.5752,21.045,21.025,30.0]
[1674193329982,4.5752,21.045,21.026,35.67]
[1674193330193,4.5752,21.045,21.027,30.0]
[1674193330396,18.92,21.044,21.028,45.67]
[1674193331132,28.33096951,21.043,21.027,20.0]
[1674193331345,23.4952,21.042,21.024,20.0]
[1674193331561,10.0,21.041,21.025,35.68]
[1674193331758,18.92,21.04,21.026,20.0]
[1674193332189,18.92,21.04,21.025,55.68]
[1674193334935,18.92,21.04,21.026,10.0]
[1674193335126,18.92,21.04,21.027,20.0]
[1674193336099,20.0,21.039,21.025,35.68]
[1674193336314,18.92,21.038,21.023,35.68]
[1674193336502,20.0,21.037,21.023,35.68]
[1674193336831,18.92,21.036,21.023,35.68]
[1674193337241,18.92,21.036,21.024,10.0]
[1674193338929,35.65,21.041,21.024,10.0]
[1674193339145,35.64,21.046,21.025,35.68]
[1674193339338,23.75576951,21.045,21.025,35.68]
[1674193339549,35.64,21.044,21.026,10.0]
[1674193339770,35.64,21.044,21.027,55.67]
[1674193339987,23.75576951,21.045,21.027,55.67]
[1674193340312,23.75576951,21.045,21.028,10.0]
[1674193340710,23.75576951,21.045,21.03,10.0]
[1674193341038,35.64,21.048,21.03,10.0]
[1674193341253,20.0,21.047,21.031,35.66]
[1674193341437,35.63,21.05,21.031,35.66]
[1674193341651,35.63,21.053,21.032,148.6787]
[1674193341875,59.37576951,21.058,21.033,35.66]
[1674193342084,4.5752,21.057,21.034,20.0]
[1674193342309,4.5752,21.057,21.035,35.66]
[1674193342499,4.5752,21.057,21.036,20.0]
[1674193342708,4.5752,21.057,21.037,45.65]
[1674193343461,35.62,21.06,21.037,45.65]
[1674193343651,23.75576951,21.065,21.04,20.43]
[1674193343861,35.61,21.064,21.041,55.65]
[1674193344079,35.61,21.064,21.042,10.0]
[1674193344283,23.75576951,21.065,21.043,55.64]
[1674193344705,23.75576951,21.064,21.044,10.0]
[1674193344908,28.33096951,21.064,21.045,35.64]
[1674193345354,34.5752,21.063,21.045,35.64]
[1674193345662,10.0,21.061,21.045,10.0]
[1674193345875,6.4952,21.06,21.045,10.0]
[1674193346083,17.0,21.059,21.045,10.0]
[1674193346289,21.92,21.058,21.045,10.0]
[1674193346488,17.0,21.057,21.045,10.0]
[1674193346693,40.1952,21.06,21.045,10.0]
[1674193346916,28.89782391,21.074,21.046,35.64]
[1674193346917,35.61,21.066,21.046,35.64]
[1674193347110,59.35576951,21.069,21.046,145.4087]
[1674193347324,10.0,21.067,21.048,10.0]
[1674193347538,10.0,21.067,21.049,35.63]
[1674193347761,33.75576951,21.067,21.049,35.63]
[1674193348394,33.75576951,21.067,21.048,35.64]
[1674193348621,10.0,21.065,21.049,10.0]
[1674193348817,10.0,21.065,21.05,35.63]
[1674193348818,18.92,21.064,21.05,35.63]
[1674193350612,10.0,21.063,21.048,35.64]
[1674193350826,18.92,21.062,21.047,55.64]
[1674193351230,10.0,21.061,21.047,20.0]
[1674193351565,18.92,21.06,21.047,20.0]
[1674193352587,55.62,21.059,21.039,35.65]
[1674193352801,4.5752,21.058,21.033,150.9412]
[1674193353028,10.0,21.056,21.034,10.0]
[1674193353224,10.0,21.054,21.036,10.0]
[1674193353442,10.0,21.054,21.037,35.65]
[1674193353772,18.92,21.053,21.038,10.0]
[1674193353959,18.92,21.053,21.039,35.65]
[1674193355017,17.0,21.052,21.039,35.65]
[1674193355232,1.92,21.051,21.04,10.0]
[1674193355422,0.96,21.051,21.04,10.0]
[1674193355637,35.62,21.056,21.04,10.0]
[1674193355868,56.13,21.06,21.041,35.65]
[1674193356076,56.13,21.06,21.042,10.0]
[1674193356293,10.0,21.058,21.043,35.64]
[1674193356486,10.0,21.058,21.043,149.6793]
[1674193356690,35.61,21.066,21.044,20.0]
[1674193356919,40.1852,21.066,21.045,35.64]
[1674193357448,4.5752,21.066,21.047,10.0]
[1674193357642,4.5752,21.066,21.048,35.64]
[1674193357855,4.5752,21.066,21.049,10.0]
[1674193358057,4.5752,21.066,21.05,35.63]
[1674193358269,4.5752,21.066,21.051,10.0]
[1674193358809,0.96,21.065,21.051,10.0]
[1674193359029,0.96,21.064,21.052,35.63]
[1674193359212,0.96,21.063,21.052,35.63]
[1674193359549,0.96,21.062,21.053,10.0]
[1674193360280,0.96,21.062,21.052,35.63]
[1674193361240,0.96,21.061,21.052,35.63]
[1674193361443,0.96,21.06,21.053,10.0]
[1674193361655,0.96,21.059,21.053,10.0]
[1674193362192,0.96,21.058,21.052,35.63]
[1674193362377,0.96,21.057,21.049,10.0]
[1674193362589,0.96,21.059,21.049,10.0]
[1674193363010,0.96,21.059,21.05,35.63]
[1674193363238,0.96,21.059,21.051,10.0]
[1674193364682,35.6,21.067,21.051,10.0]
[1674193364892,45.6,21.069,21.053,10.0]
[1674193365104,20.0,21.068,21.054,35.63]
[1674193365331,20.0,21.068,21.053,10.0]
[1674193366164,20.0,21.068,21.054,35.63]
[1674193366165,10.0,21.067,21.054,35.63]
[1674193366578,20.0,21.068,21.054,35.63]
[1674193366807,20.0,21.068,21.055,10.0]
[1674193367124,0.96,21.067,21.055,10.0]
[1674193367337,20.96,21.068,21.054,35.63]
[1674193367520,56.56,21.068,21.052,35.63]
[1674193367733,10.0,21.067,21.052,35.63]
[1674193367942,0.96,21.066,21.048,35.64]
[1674193368153,0.96,21.065,21.048,35.64]
[1674193368362,0.96,21.064,21.051,10.0]
[1674193368570,0.96,21.063,21.051,10.0]
[1674193368802,0.96,21.062,21.051,10.0]
[1674193369205,0.96,21.061,21.051,10.0]
[1674193369414,0.96,21.062,21.051,10.0]
[1674193369638,20.0,21.068,21.052,35.63]
[1674193369859,20.0,21.068,21.053,10.0]
[1674193370061,20.0,21.068,21.054,35.63]
[1674193370262,20.0,21.068,21.055,10.0]
[1674193370473,20.0,21.071,21.056,35.62]
[1674193370803,35.6,21.07,21.056,35.62]
[1674193371019,59.35576951,21.07,21.054,35.63]
[1674193371204,10.0,21.068,21.054,35.63]
[1674193371536,17.96,21.067,21.052,35.63]
[1674193371855,10.96,21.066,21.052,35.63]
[1674193372045,17.96,21.065,21.052,35.63]
[1674193372255,0.96,21.064,21.052,35.63]
[1674193372909,0.96,21.064,21.053,10.0]
[1674193373427,0.96,21.064,21.052,35.63]
[1674193373646,0.96,21.064,21.047,45.64]
[1674193373847,0.96,21.064,21.047,35.64]
[1674193374058,35.61,21.063,21.047,35.64]
[1674193374271,27.96,21.062,21.045,35.64]
[1674193374496,0.96,21.061,21.044,35.64]
[1674193374682,10.96,21.061,21.044,35.64]
[1674193374882,17.96,21.06,21.044,35.64]
[1674193375093,0.96,21.059,21.044,35.64]
[1674193375309,51.1552,21.058,21.039,110.763]
[1674193375542,10.0,21.056,21.039,110.763]
[1674193375753,18.92,21.055,21.039,110.763]
[1674193375937,10.0,21.054,21.039,110.763]
[1674193376142,18.92,21.053,21.039,110.763]
[1674193376564,17.0,21.052,21.041,10.0]
[1674193376880,1.92,21.051,21.041,10.0]
[1674193377090,0.96,21.05,21.041,10.0]
[1674193377297,0.96,21.049,21.041,10.0]
[1674193377507,0.96,21.048,21.041,10.0]
[1674193377745,0.96,21.047,21.041,10.0]
[1674193378154,0.96,21.047,21.042,35.65]
[1674193378907,0.0001,21.048,21.044,10.0]
[1674193379091,17.0,21.055,21.044,10.0]
[1674193379303,17.0,21.057,21.044,10.0]
[1674193379513,17.0,21.057,21.044,45.64]
[1674193380269,17.0,21.057,21.044,35.64]
[1674193380997,1.92,21.056,21.044,45.64]
[1674193381403,1.92,21.056,21.043,114.0393]
[1674193381615,10.0,21.055,21.043,114.0393]
[1674193381825,18.92,21.054,21.043,114.0393]
[1674193382454,18.92,21.054,21.044,10.0]
[1674193382674,1.92,21.054,21.044,10.0]
[1674193383637,20.0,21.059,21.045,35.64]
[1674193383836,20.0,21.06,21.045,35.64]
[1674193384044,20.0,21.06,21.046,10.0]
[1674193384791,10.0,21.059,21.045,35.64]
[1674193384986,20.0,21.058,21.045,35.64]
[1674193385397,18.92,21.057,21.045,35.64]
[1674193386975,18.92,21.057,21.046,10.0]
[1674193387183,18.92,21.057,21.047,20.0]
[1674193387415,35.61,21.064,21.048,10.0]
[1674193388678,0.96,21.063,21.048,10.0]
[1674193388992,0.96,21.062,21.048,10.0]
[1674193389202,0.96,21.061,21.048,10.0]
[1674193389391,0.96,21.06,21.048,10.0]
[1674193389602,0.96,21.059,21.048,10.0]
[1674193390028,0.96,21.058,21.048,10.0]
[1674193390239,0.96,21.057,21.048,10.0]
[1674193392342,0.96,21.057,21.05,10.0]
[1674193395387,0.96,21.056,21.05,10.0]
[1674193395598,0.96,21.055,21.05,10.0]
[1674193396042,0.96,21.054,21.05,10.0]
[1674193396876,17.0,21.061,21.05,10.0]
[1674193397071,1.92,21.06,21.05,10.0]
[1674193398879,35.6,21.068,21.05,10.0]
[1674193399092,20.0,21.067,21.051,35.63]
[1674193399304,20.0,21.067,21.052,10.0]
[1674193399520,10.0,21.066,21.053,35.63]
[1674193400137,0.96,21.065,21.053,35.63]
[1674193400341,0.96,21.064,21.053,35.63]
[1674193400552,0.96,21.063,21.053,35.63]
[1674193400776,0.96,21.062,21.053,35.63]
[1674193400978,0.96,21.061,21.052,10.0]